bitfinex-derivatives/quotes_BNBF0:USTF0_20250521
["timestamp","ask_amount","ask_price","bid_price","bid_amount"]
[1747805596428,1.509,662.6,662.16,1.56142299]
[1747805596628,1.509,662.6,662.17,0.56366203]
[1747805596825,1.509,662.6,662.18,0.56366203]
[1747805597030,1.509,662.6,662.19,1.56142299]
[1747805597226,1.509,662.6,662.2,0.56366203]
[1747805597429,1.509,662.6,662.19,0.99776096]
[1747805597430,1.509,662.6,662.21,0.56366203]
[1747805597628,1.509,662.6,662.22,0.56366203]
[1747805597828,1.509,662.6,662.23,1.56142299]
[1747805598028,1.509,662.6,662.24,0.56366203]
[1747805598230,1.509,662.6,662.25,1.56142299]
[1747805598432,1.509,662.6,662.26,0.56366203]
[1747805598629,1.509,662.6,662.27,0.56366203]
[1747805598832,1.509,662.6,662.28,1.56142299]
[1747805599034,1.509,662.6,662.29,0.56366203]
[1747805599233,1.509,662.6,662.3,0.56366203]
[1747805599535,1.509,662.6,662.31,0.56366203]
[1747805599729,1.509,662.6,662.32,0.56366203]
[1747805599932,1.509,662.6,662.33,1.56142299]
[1747805600232,1.509,662.6,662.34,0.56366203]
[1747805600430,1.509,662.6,662.35,0.56366203]
[1747805600630,1.509,662.6,662.36,0.56366203]
[1747805600930,1.509,662.6,662.37,0.56366203]
[1747805601132,1.509,662.6,662.38,1.56142299]
[1747805601332,1.509,662.6,662.39,0.56366203]
[1747805601530,1.509,662.6,662.4,0.56366203]
[1747805601737,1.509,662.6,662.41,0.56366203]
[1747805601934,1.509,662.6,662.42,0.56366203]
[1747805602129,1.509,662.6,662.43,0.99776096]
[1747805602538,1.509,662.6,662.44,0.99776096]
[1747805603037,1.509,662.6,662.45,0.99776096]
[1747805603639,1.509,662.6,662.02,1.806]
[1747805603840,1.509,662.6,662.03,0.55945935]
[1747805604140,1.509,662.6,662.04,1.54816398]
[1747805604342,1.509,662.6,662.05,0.55945935]
[1747805604639,1.509,662.6,662.06,0.55945935]
[1747805604840,1.509,662.6,662.07,1.54816398]
[1747805605140,1.509,662.6,662.08,0.55945935]
[1747805605341,1.509,662.6,662.09,1.54816398]
[1747805605641,1.509,662.6,662.1,0.55945935]
[1747805605842,1.509,662.6,662.11,1.54816398]
[1747805606142,1.509,662.6,662.12,0.55945935]
[1747805606343,1.509,662.6,662.11,0.98870463]
[1747805606344,1.509,662.6,662.13,1.54816398]
[1747805606542,1.509,662.6,662.14,0.55945935]
[1747805606743,1.509,662.6,662.15,0.55945935]
[1747805606939,1.509,662.6,662.16,1.54816398]
[1747805607148,1.509,662.6,662.17,0.55945935]
[1747805607444,1.509,662.6,662.18,0.55945935]
[1747805607644,1.509,662.6,662.19,1.54742415]
[1747805607943,1.49790487,663.54,662.2,0.55871952]
[1747805608244,1.49790487,663.54,662.21,1.54742415]
[1747805608545,1.49790487,663.54,662.22,0.55871952]
[1747805608743,1.49790487,663.54,662.23,0.55871952]
[1747805608941,1.49790487,663.54,662.22,0.98870463]
[1747805608942,1.49790487,663.54,662.24,0.55871952]
[1747805609140,1.49790487,663.51,662.25,1.54742415]
[1747805609443,1.49790487,663.51,662.26,0.55855689]
[1747805609644,1.49790487,663.51,662.27,1.54726152]
[1747805609943,1.49790487,663.51,662.28,0.55855689]
[1747805610143,1.49790487,663.51,662.29,1.54726152]
[1747805610347,1.49790487,663.51,662.3,0.55855689]
[1747805610543,1.49790487,663.51,662.31,0.55855689]
[1747805610746,1.49790487,663.51,662.32,0.55855689]
[1747805611046,1.507,663.5,662.33,1.54700376]
[1747805611246,1.507,663.5,662.34,0.55829913]
[1747805611448,1.507,663.5,662.35,1.54700376]
[1747805611648,1.507,663.5,662.36,0.55829913]
[1747805611948,1.507,663.5,662.37,0.98870463]
[1747805612447,1.507,663.5,662.38,0.98870463]
[1747805612749,1.507,663.5,662.39,0.98870463]
[1747805613150,1.507,663.5,662.4,0.98870463]
[1747805613450,0.26250877,663.49,662.4,0.98870463]
[1747805613652,0.26250877,663.49,662.41,0.98870463]
[1747805614249,0.26250877,663.49,662.42,0.98870463]
[1747805614850,0.26250877,663.49,662.43,0.98870463]
[1747805615045,1.507,663.5,662.44,0.98870463]
[1747805615350,1.507,663.5,662.45,1.973]
[1747805616752,1.507,663.5,662.46,1.43]
[1747805618650,1.507,663.5,662.47,1.336]
[1747805628464,0.26250085,663.49,662.47,1.336]
[1747805630064,1.507,663.5,662.47,1.336]
[1747805630359,0.26250085,663.48,662.47,1.336]
[1747805630560,0.26250085,663.48,662.46,1.43]
[1747805631965,0.26250085,663.48,662.47,1.36]
[1747805633066,1.507,663.5,662.47,1.36]
[1747805633668,1.507,663.5,662.48,1.429]
[1747805634166,1.49790487,663.2,662.48,1.429]
[1747805635867,1.49790487,663.2,662.49,1.676]
[1747805637069,1.3,663.19,662.49,1.676]
[1747805637469,1.56258998,663.19,662.49,1.676]
[1747805639074,1.3,663.19,662.49,1.676]
[1747805639373,0.26259097,663.18,662.49,1.676]
[1747805640774,1.49790487,663.08,662.49,1.676]
[1747805644176,1.49790487,663.12,662.49,1.676]
[1747805646276,1.49790487,663.12,662.5,1.572]
[1747805647077,1.3,663.19,662.5,1.572]
[1747805647078,1.49790487,663.04,662.5,1.572]
[1747805649977,1.49790487,662.97,662.5,1.572]
[1747805651280,1.49790487,662.97,662.51,1.743]
[1747805652882,1.49790487,662.81,662.51,1.743]
[1747805657886,1.49790487,662.88,662.51,1.743]
[1747805660281,1.49790487,662.93,662.51,1.743]
[1747805662892,1.49790487,662.91,662.51,1.743]
[1747805663493,1.49790487,662.91,662.52,1.663]
[1747805664897,1.49790487,662.9,662.52,1.663]
[1747805667699,1.49790487,662.94,662.52,1.663]
[1747805671004,1.49790487,662.91,662.52,1.663]
[1747805673303,1.49790487,662.82,662.52,1.663]
[1747805676109,1.49790487,662.77,662.52,1.663]
[1747805678412,1.49790487,662.76,662.52,1.663]
[1747805680813,1.49790487,662.72,662.52,1.663]
[1747805683417,1.49790487,662.67,662.52,1.663]
[1747805686719,1.49790487,662.81,662.52,1.663]
[1747805689220,1.49790487,662.84,662.52,1.663]
[1747805690922,1.49790487,662.84,662.53,1.798]
[1747805691824,1.49790487,662.83,662.53,1.798]
[1747805694921,1.49790487,662.84,662.53,1.798]
[1747805697822,1.49790487,662.83,662.53,1.798]
[1747805701229,1.49790487,662.79,662.53,1.798]
[1747805704433,1.49790487,662.88,662.53,1.798]
[1747805704934,1.49790487,662.88,662.54,1.801]
[1747805706836,1.49790487,662.79,662.54,1.801]
[1747805709435,1.49790487,662.77,662.54,1.801]
[1747805712942,1.49790487,662.61,662.54,1.801]
[1747805716342,2.25501736,662.56,662.54,1.801]
[1747805719442,0.2626881,662.96,662.54,1.801]
[1747805719443,2.25501736,662.59,662.54,1.801]
[1747805722346,2.25501736,662.63,662.54,1.801]
[1747805725053,1.50115323,662.59,662.54,1.801]
[1747805727853,1.50115323,662.62,662.54,1.801]
[1747805729954,1.50115323,662.65,662.54,1.801]
[1747805732657,1.50115323,662.62,662.54,1.801]
[1747805735360,1.50115323,662.58,662.54,1.801]
[1747805738060,1.50115323,662.56,662.54,1.801]
[1747805740659,1.50115323,662.55,662.54,1.801]
[1747805743561,1.50115323,662.63,662.54,1.801]
[1747805746362,1.50115323,662.62,662.54,1.801]
[1747805747961,1.50115323,662.62,662.01,2.931]
[1747805748264,1.50115323,662.62,662.02,0.56325746]
[1747805748464,1.50115323,662.62,662.01,2.931]
[1747805748666,1.50115323,662.62,662.02,0.56329295]
[1747805748865,1.50115323,662.62,662.01,1.779]
[1747805749059,1.50115323,662.62,661.71,0.26266431]
[1747805749263,1.50115323,662.62,661.72,0.5632966]
[1747805749461,1.50115323,662.61,661.73,0.5632966]
[1747805749662,1.50115323,662.61,661.74,1.55187054]
[1747805749859,1.50115323,662.61,661.75,0.5632966]
[1747805750062,1.50115323,662.61,661.76,0.5632966]
[1747805750263,1.50115323,662.61,661.77,0.5632966]
[1747805750567,1.50115323,662.61,661.78,1.55187054]
[1747805750865,1.50115323,662.61,661.79,1.55187054]
[1747805751065,1.50115323,662.61,661.8,0.5632966]
[1747805751367,1.509,662.6,661.81,1.55187054]
[1747805751666,1.509,662.6,661.82,0.5632966]
[1747805751865,1.509,662.6,661.83,1.55187054]
[1747805752059,1.509,662.6,661.84,0.5632966]
[1747805752260,1.509,662.6,661.85,1.55187054]
[1747805752460,1.509,662.6,661.86,0.5632966]
[1747805752660,1.50115323,662.59,661.87,1.55187054]
[1747805752860,1.50115323,662.59,661.88,0.5632966]
[1747805753064,1.50115323,662.59,661.89,0.5632966]
[1747805753265,1.50115323,662.59,661.9,1.55187054]
[1747805753464,1.50115323,662.59,661.91,0.5632966]
[1747805753668,1.50115323,662.59,661.92,0.5632966]
[1747805753869,1.50115323,662.59,661.93,1.55187054]
[1747805754064,1.50115323,662.59,661.94,0.56333191]
[1747805754269,1.50115323,662.59,661.95,1.55190585]
[1747805754461,1.50115323,662.59,661.96,0.56333191]
[1747805754665,1.50115323,662.59,661.97,0.56333191]
[1747805754863,3.01015323,662.6,661.98,0.56333191]
[1747805755068,3.01015323,662.6,661.99,0.56333191]
[1747805755365,3.01015323,662.6,662.0,0.56333191]
[1747805755566,3.01015323,662.6,662.01,0.56333191]
[1747805755766,3.01015323,662.6,662.02,1.55190585]
[1747805755963,3.01015323,662.6,662.03,0.56333191]
[1747805756164,3.01015323,662.6,662.04,0.56333191]
[1747805756365,3.01015323,662.6,662.05,0.56333191]
[1747805756569,3.01015323,662.6,662.06,0.56333191]
[1747805756769,3.01015323,662.6,662.07,0.56333191]
[1747805756971,3.01015323,662.6,662.08,0.56333191]
[1747805757170,3.01015323,662.6,662.09,0.56333191]
[1747805757372,3.01015323,662.6,662.1,0.56333191]
[1747805757566,3.01015323,662.6,662.11,0.56360151]
[1747805757769,3.01015323,662.6,662.12,0.56360151]
[1747805757970,3.01015323,662.6,661.81,5.333]
[1747805758167,3.01015323,662.6,661.82,0.56359881]
[1747805758373,3.01015323,662.6,661.83,0.56359881]
[1747805758573,3.01015323,662.6,661.84,0.56359881]
[1747805758768,3.01015323,662.6,661.85,1.55260151]
[1747805758971,3.01015323,662.6,661.86,0.56359881]
[1747805759174,3.01015323,662.6,661.87,1.55260151]
[1747805759374,3.01015323,662.6,661.88,0.56359881]
[1747805759569,3.01015323,662.6,661.89,0.56359881]
[1747805759773,3.01015323,662.6,661.9,0.56359881]
[1747805760074,1.509,662.6,661.91,0.56359881]
[1747805760376,1.509,662.6,661.92,0.56359881]
[1747805760675,1.509,662.6,661.93,1.55260151]
[1747805760876,1.509,662.6,661.94,0.56386121]
[1747805761075,1.509,662.6,661.95,0.56386121]
[1747805761275,1.509,662.6,661.96,1.55286391]
[1747805761476,1.509,662.6,661.97,0.56386121]
[1747805761678,1.509,662.6,661.98,0.56386121]
[1747805761878,1.509,662.6,661.99,0.56386121]
[1747805762176,1.509,662.6,662.0,0.56403042]
[1747805762376,1.509,662.6,662.01,1.55303312]
[1747805762676,1.509,662.6,662.02,0.56403042]
[1747805762876,1.509,662.6,662.03,1.55303312]
[1747805763076,1.509,662.6,662.04,0.56403042]
[1747805763277,1.509,662.6,662.05,0.56403042]
[1747805763478,1.509,662.6,662.06,0.56403042]
[1747805763776,1.509,662.6,662.07,0.56403042]
[1747805763976,1.509,662.6,662.08,0.56403042]
[1747805764177,1.509,662.6,662.09,1.55303312]
[1747805764376,1.509,662.6,662.1,0.56403042]
[1747805764575,1.509,662.6,662.11,1.55303312]
[1747805764777,1.509,662.6,662.12,0.56403042]
[1747805764977,1.509,662.6,662.13,1.55303312]
[1747805765172,1.509,662.6,662.14,0.56455953]
[1747805765378,1.509,662.6,662.15,1.55356223]
[1747805765578,1.509,662.6,662.16,0.56455953]
[1747805765776,1.509,662.6,662.17,1.55356223]
[1747805765975,1.509,662.6,661.81,5.333]
[1747805765976,1.509,662.6,662.18,0.56455953]
[1747805766170,1.509,662.6,662.19,0.56455953]
[1747805766376,1.509,662.6,662.2,0.56455953]
[1747805766579,1.509,662.6,662.21,0.56455953]
[1747805766777,1.509,662.6,662.22,0.56455953]
[1747805766971,1.509,662.6,662.23,0.56455953]
[1747805767176,1.509,662.6,662.24,0.56455953]
[1747805767375,1.509,662.6,662.25,0.56487011]
[1747805767575,1.509,662.6,662.26,0.56487011]
[1747805767771,1.509,662.6,661.81,5.333]
[1747805767973,1.509,662.6,661.82,0.56498399]
[1747805768177,1.509,662.6,661.83,0.56498399]
[1747805768376,1.509,662.6,661.84,0.56498399]
[1747805768578,1.509,662.6,661.85,0.56498399]
[1747805768871,1.509,662.6,661.86,1.55619082]
[1747805769075,1.509,662.6,661.87,0.56521518]
[1747805769276,1.509,662.6,661.88,0.56521518]
[1747805769476,1.509,662.6,661.89,1.55642201]
[1747805769676,1.509,662.6,661.9,0.56521518]
[1747805769876,1.509,662.6,661.91,0.56521518]
[1747805770074,1.509,662.6,661.92,1.55642201]
[1747805770276,1.509,662.6,661.93,1.55642201]
[1747805770479,1.509,662.6,661.94,0.56521518]
[1747805770779,1.509,662.6,661.95,1.55642201]
[1747805770974,1.509,662.6,661.96,0.56521518]
[1747805771171,1.50115323,662.57,661.97,0.56521518]
[1747805771371,1.50115323,662.57,661.98,0.56521518]
[1747805771578,1.50115323,662.57,661.99,0.56521518]
[1747805771779,1.50115323,662.57,662.0,1.55642201]
[1747805771978,1.50115323,662.57,662.01,0.56521518]
[1747805772175,1.50115323,662.57,662.02,0.56521518]
[1747805772380,1.50115323,662.57,662.03,0.56521518]
[1747805772578,1.50115323,662.57,662.04,0.56613551]
[1747805772778,1.50115323,662.57,662.05,1.55734234]
[1747805772981,1.50115323,662.57,662.06,0.56613551]
[1747805773179,1.50115323,662.57,662.07,0.56613551]
[1747805773378,1.50115323,662.57,662.08,0.56613551]
[1747805773580,1.50115323,662.57,662.09,0.56613551]
[1747805773781,1.50115323,662.57,662.1,0.56613551]
[1747805774080,1.50115323,662.57,661.93,1.528]
[1747805774081,1.50115323,662.44,662.11,0.56613551]
[1747805774282,1.50115323,662.44,662.12,0.56622399]
[1747805774579,1.50115323,662.44,662.13,0.56622399]
[1747805774780,1.50115323,662.44,662.14,0.56622399]
[1747805775081,1.50115323,662.44,661.93,1.528]
[1747805775277,1.50115323,662.44,661.94,0.56623889]
[1747805775479,1.50115323,662.44,661.95,0.56623889]
[1747805775681,1.50115323,662.44,661.96,1.56038134]
[1747805775876,1.50115323,662.44,661.97,1.56038134]
[1747805776077,1.50115323,662.44,661.98,0.56625538]
[1747805776282,1.50115323,662.44,661.99,0.56625538]
[1747805776582,1.50115323,662.44,662.0,1.56039783]
[1747805776886,1.50115323,662.44,662.01,0.56625538]
[1747805777082,1.50115323,662.44,662.02,1.56039783]
[1747805777286,1.50115323,662.39,662.03,0.56625538]
[1747805777479,1.50115323,662.39,662.04,1.56039783]
[1747805777686,1.50115323,662.39,662.05,0.56625538]
[1747805777885,1.50115323,662.39,662.06,0.56625538]
[1747805778086,1.50115323,662.39,662.07,0.56625538]
[1747805778285,1.50115323,662.39,662.08,0.56625538]
[1747805778486,1.50115323,662.39,662.09,0.56625538]
[1747805778687,1.50115323,662.39,662.1,0.56625538]
[1747805778985,1.50115323,662.39,662.11,0.56625538]
[1747805779186,1.50115323,662.39,662.12,0.56625538]
[1747805779487,1.50115323,662.39,662.13,0.56728314]
[1747805779685,1.50115323,662.39,662.14,0.56728314]
[1747805779893,1.50115323,662.39,662.15,0.56728314]
[1747805780080,1.50115323,662.39,661.93,1.528]
[1747805780081,1.50115323,662.39,662.16,0.56728314]
[1747805780281,1.50115323,662.39,661.93,1.528]
[1747805780481,1.50115323,662.39,661.94,0.56730296]
[1747805780687,1.50115323,662.39,661.95,0.56730296]
[1747805780886,1.50115323,662.39,661.96,0.56730296]
[1747805781087,1.50115323,662.39,661.97,1.56338957]
[1747805781288,1.50115323,662.39,661.98,0.5673111]
[1747805781490,1.50115323,662.39,661.99,1.56339771]
[1747805781787,1.50115323,662.39,662.0,0.5673111]
[1747805781989,1.50115323,662.39,661.93,1.528]
[1747805782689,1.50115323,662.39,661.81,3.578]
[1747805782983,1.50115323,662.39,661.82,1.56337137]
[1747805783188,1.50115323,662.42,661.83,0.56722042]
[1747805783387,1.50115323,662.42,661.82,0.99615095]
[1747805783388,1.50115323,662.42,661.84,0.56722042]
[1747805783582,1.50115323,662.42,661.85,0.56722042]
[1747805783784,1.50115323,662.42,661.86,0.56722042]
[1747805783987,3.01015323,662.42,661.87,0.56722042]
[1747805784186,3.01015323,662.42,661.88,0.56722042]
[1747805784383,3.01015323,662.42,661.89,0.56722042]
[1747805784589,3.01015323,662.42,661.9,0.56722042]
[1747805784888,3.01015323,662.42,661.81,1.428]
[1747805785187,3.01015323,662.42,661.82,1.56217988]
[1747805785388,3.01015323,662.42,661.83,0.56682272]
[1747805785691,1.509,662.42,661.84,0.56682272]
[1747805785888,1.509,662.42,661.85,0.56682272]
[1747805786189,1.509,662.42,661.86,0.56653364]
[1747805786388,1.509,662.42,661.87,0.56653364]
[1747805786591,1.509,662.42,661.88,0.56653364]
[1747805786783,1.509,662.42,661.89,0.56653364]
[1747805786984,1.509,662.42,661.9,0.56653364]
[1747805787187,1.509,662.42,661.84,2.797]
[1747805787487,1.509,662.42,661.85,0.5664167]
[1747805787786,1.509,662.42,661.86,0.5664167]
[1747805787990,1.509,662.42,661.87,0.5664167]
[1747805788191,1.509,662.42,661.84,2.797]
[1747805788393,1.50115323,662.38,661.88,1.463]
[1747805790994,1.50115323,662.39,661.88,1.463]
[1747805794195,1.50115323,662.36,661.88,1.463]
[1747805796200,1.50115323,662.31,661.88,1.463]
[1747805797704,1.50115323,662.28,661.88,1.463]
[1747805800206,1.50115323,662.21,661.88,1.463]
[1747805803008,1.50115323,662.29,661.88,1.463]
[1747805804412,1.50115323,662.29,661.89,1.199]
[1747805806114,1.50115323,662.29,661.9,1.664]
[1747805808615,2.25501736,662.4,661.9,1.664]
[1747805808915,3.01015323,662.46,661.9,1.664]
[1747805813916,1.50115323,662.45,661.9,1.664]
[1747805816422,1.50115323,662.26,661.9,1.664]
[1747805819124,1.50115323,662.29,661.9,1.664]
[1747805824925,1.50115323,662.39,661.9,1.664]
[1747805827926,1.50115323,662.37,661.9,1.664]
[1747805830427,1.50115323,662.29,661.9,1.664]
[1747805832829,1.50115323,661.97,661.9,1.664]
[1747805835228,2.25501736,662.0,661.9,1.664]
[1747805838027,2.25501736,661.97,661.9,1.664]
[1747805840433,0.26294712,662.27,661.9,1.664]
[1747805842829,2.24717543,661.93,661.9,1.664]
[1747805845537,2.24717543,662.07,661.9,1.664]
[1747805848137,2.24717543,662.06,661.9,1.664]
[1747805848339,2.24717543,662.06,661.66,1.671]
[1747805850533,1.49349484,661.95,661.66,1.671]
[1747805850939,1.49349484,661.95,661.66,2.877]
[1747805853140,1.49349484,662.0,661.66,2.877]
[1747805855941,1.49349484,662.01,661.66,2.877]
[1747805858639,1.49349484,662.02,661.66,2.877]
[1747805861546,1.51,662.24,661.66,2.877]
[1747805861547,1.49349484,662.03,661.66,2.877]
[1747805863948,1.49349484,662.05,661.66,2.877]
[1747805867151,1.49349484,662.04,661.66,2.877]
[1747805870748,1.49349484,661.99,661.66,2.877]
[1747805874551,0.26302662,661.98,661.66,2.877]
[1747805874759,0.26302662,661.98,661.66,1.206]
[1747805876163,1.49349484,661.85,661.66,1.206]
[1747805879565,1.49349484,661.8,661.66,1.206]
[1747805882168,1.49349484,661.98,661.66,1.206]
[1747805884065,1.49349484,661.98,661.56,1.429]
[1747805885667,1.12289715,661.58,661.56,2.808]
[1747805888673,1.49349484,661.66,661.56,2.808]
[1747805892082,1.49349484,661.7,661.56,2.808]
[1747805892380,1.49349484,661.7,661.56,1.379]
[1747805895884,1.49349484,661.64,661.56,1.379]
[1747805898189,1.49349484,661.59,661.56,1.379]
[1747805901086,1.49349484,661.62,661.56,1.379]
[1747805903989,2.24717543,661.8,661.56,1.379]
[1747805903990,1.49349484,661.66,661.56,1.379]
[1747805910294,1.49349484,661.71,661.56,1.379]
[1747805913096,1.1306512,661.57,661.56,1.379]
[1747805919603,1.1306512,661.64,661.56,1.379]
[1747805922604,1.1306512,661.64,661.41,1.341]
[1747805922801,1.1306512,661.64,661.42,0.56653084]
[1747805923001,1.1306512,661.65,661.41,1.341]
[1747805923198,1.1306512,661.65,661.42,0.56654088]
[1747805923402,1.1306512,661.65,661.41,1.341]
[1747805924911,1.1306512,661.68,661.41,1.341]
[1747805925503,1.1306512,661.68,661.42,0.56655181]
[1747805925706,1.1306512,661.68,661.41,1.341]
[1747805926003,1.1306512,661.68,661.42,0.56650942]
[1747805926207,1.1306512,661.68,661.39,1.291]
[1747805926403,1.1306512,661.71,661.4,0.56650955]
[1747805926607,1.1306512,661.71,661.41,0.56650955]
[1747805926802,1.1306512,661.71,661.39,1.291]
[1747805927009,1.1306512,661.71,661.4,0.56649881]
[1747805927309,1.1306512,661.71,661.41,0.56649881]
[1747805927509,1.1306512,661.71,661.39,1.291]
[1747805927711,1.1306512,661.71,661.4,0.56645929]
[1747805927910,1.1306512,661.71,661.41,0.56645929]
[1747805928113,1.1306512,661.71,661.39,1.291]
[1747805928416,1.1306512,661.71,661.4,0.56644874]
[1747805928711,1.1306512,661.71,661.39,1.291]
[1747805929014,1.1306512,661.71,661.4,1.49]
[1747805929213,1.1306512,661.66,661.4,1.49]
[1747805932215,1.1306512,661.63,661.4,1.49]
[1747805935417,1.1306512,661.57,661.4,1.49]
[1747805938720,1.1306512,661.6,661.4,1.49]
[1747805942423,1.1306512,661.61,661.4,1.49]
[1747805944925,1.1306512,661.59,661.4,1.49]
[1747805948426,1.1306512,661.55,661.4,1.49]
[1747805951730,1.1306512,661.54,661.4,1.49]
[1747805954429,1.1306512,661.51,661.4,1.49]
[1747805956429,1.1306512,661.51,661.41,0.56794734]
[1747805956633,1.1306512,661.51,661.42,0.56794734]
[1747805956934,1.1306512,661.51,661.4,1.49]
[1747805956935,1.1306512,661.62,661.43,0.56794734]
[1747805957134,1.1306512,661.62,661.44,0.56794734]
[1747805957334,1.1306512,661.62,661.45,0.56794734]
[1747805957534,1.1306512,661.62,661.46,0.56786449]
[1747805957736,1.1306512,661.62,661.47,0.56786449]
[1747805957930,1.1306512,661.62,661.48,0.56786449]
[1747805958233,1.1306512,661.62,661.49,0.56786449]
[1747805958433,1.1306512,661.62,661.4,1.49]
[1747805958635,1.1306512,661.62,661.41,0.5678733]
[1747805958935,1.1306512,661.62,661.42,0.5678733]
[1747805959134,1.1306512,661.62,661.43,0.5678733]
[1747805959334,1.1306512,661.62,661.44,0.5678733]
[1747805959535,1.1306512,661.62,661.45,0.5678733]
[1747805959737,1.1306512,661.62,661.46,0.5678733]
[1747805959936,1.1306512,661.62,661.47,0.5678733]
[1747805960135,1.1306512,661.62,661.48,0.5678733]
[1747805960334,1.1306512,661.62,661.4,1.49]
[1747805960535,1.1306512,661.62,661.41,0.56788944]
[1747805960730,1.1306512,661.62,661.42,0.56788944]
[1747805960934,1.1306512,661.62,661.43,0.56792098]
[1747805961229,1.1306512,661.62,661.44,0.56792098]
[1747805961435,1.1306512,661.62,661.45,0.56792098]
[1747805961630,1.1306512,661.62,661.46,0.56792098]
[1747805961834,1.1306512,661.62,661.47,0.56792098]
[1747805962035,1.1306512,661.62,661.48,0.56792098]
[1747805962235,1.1306512,661.62,661.49,0.56792098]
[1747805962538,1.1306512,661.62,661.4,1.49]
[1747805962734,1.1306512,661.62,661.41,0.56797013]
[1747805962933,1.1306512,661.65,661.42,0.56797013]
[1747805963135,1.1306512,661.65,661.43,0.56797013]
[1747805963334,1.1306512,661.65,661.44,0.56797013]
[1747805963538,1.1306512,661.65,661.45,0.56797013]
[1747805963839,1.1306512,661.65,661.46,0.56797013]
[1747805964042,1.1306512,661.65,661.47,0.56797013]
[1747805964338,1.1306512,661.65,661.4,1.49]
[1747805964637,1.1306512,661.65,661.41,0.5680047]
[1747805964937,1.1306512,661.65,661.42,0.5680047]
[1747805965137,1.1306512,661.65,661.43,0.5680047]
[1747805965338,1.1306512,661.65,661.44,0.5680047]
[1747805965531,1.1306512,661.65,661.45,0.5680047]
[1747805965736,1.1306512,661.66,661.46,0.5680047]
[1747805965937,1.1306512,661.66,661.47,0.5680047]
[1747805966137,1.1306512,661.66,661.4,1.49]
[1747805966338,1.1306512,661.66,661.41,0.56809233]
[1747805966642,1.1306512,661.66,661.42,0.56809233]
[1747805966839,1.1306512,661.66,661.43,0.56809488]
[1747805967039,1.1306512,661.66,661.44,0.56809488]
[1747805967239,1.1306512,661.66,661.45,0.56809488]
[1747805967540,1.1306512,661.66,661.46,0.56809488]
[1747805967739,1.1306512,661.66,661.47,0.56809488]
[1747805967939,1.1306512,661.66,661.4,1.49]
[1747805968141,1.1306512,661.66,661.41,0.56811461]
[1747805968340,1.1306512,661.66,661.42,0.56811461]
[1747805968541,1.1306512,661.66,661.43,0.56811461]
[1747805968742,1.1306512,661.65,661.44,0.56811461]
[1747805968942,1.1306512,661.65,661.45,0.56811461]
[1747805969243,1.1306512,661.65,661.46,0.56811461]
[1747805969441,1.1306512,661.65,661.47,0.56811461]
[1747805969742,1.1306512,661.65,661.48,0.56811679]
[1747805969942,1.1306512,661.65,661.32,1.39]
[1747805970143,1.1306512,661.65,661.33,0.56811679]
[1747805970443,1.1306512,661.65,661.34,1.5644611]
[1747805970642,1.1306512,661.65,661.35,0.56811679]
[1747805970844,1.1306512,661.65,661.36,1.5644611]
[1747805971143,1.1306512,661.65,661.37,0.56811679]
[1747805971439,1.1306512,661.65,661.38,1.5644611]
[1747805971642,1.1306512,661.65,661.39,0.56811679]
[1747805971844,1.1306512,661.65,661.4,0.56811679]
[1747805972044,1.1306512,661.65,661.41,0.56811679]
[1747805972239,1.1306512,661.65,661.42,0.56811679]
[1747805972443,1.1306512,661.65,661.43,0.56811679]
[1747805972647,1.1306512,661.65,661.44,0.56811679]
[1747805972850,1.1306512,661.65,661.45,0.56811679]
[1747805973145,1.1306512,661.65,661.46,0.56811679]
[1747805973339,1.1306512,661.65,661.47,0.56811679]
[1747805973539,1.1306512,661.65,661.48,0.56811679]
[1747805973843,1.1306512,661.65,661.35,1.31]
[1747805974044,1.1306512,661.65,661.36,0.56809773]
[1747805974246,1.1306512,661.65,661.37,0.56809773]
[1747805974546,1.1306512,661.65,661.38,0.56809773]
[1747805974745,1.1306512,661.65,661.39,0.56809773]
[1747805975045,1.1306512,661.65,661.4,1.56414179]
[1747805975245,1.1306512,661.65,661.41,1.56414179]
[1747805975440,1.1306512,661.65,661.42,0.56809773]
[1747805975643,1.1306512,661.65,661.43,0.56809773]
[1747805975843,1.1306512,661.65,661.44,0.56809773]